bitfinex/quotes_SOLUSD_20250617
["timestamp","ask_amount","ask_price","bid_price","bid_amount"]
[1750137558608,32.98,153.39,153.36,13.07101861]
[1750137558808,5.98,153.39,153.36,13.07101861]
[1750137559008,32.98,153.39,153.36,13.07101861]
[1750137559631,6.02545165,153.48,153.39,1.5927]
[1750137559814,5.98,153.51,153.46,6.55044336]
[1750137560006,5.98,153.51,153.48,6.55044336]
[1750137560214,42.20552747,153.54,153.49,6.55044336]
[1750137560406,4.87841341,153.53,153.49,6.55044336]
[1750137560734,4.87841341,153.53,153.44,6.55044336]
[1750137560735,6.55044336,153.5,153.44,0.14216157]
[1750137560904,27.38,153.49,153.44,3.2666079]
[1750137561105,6.55044336,153.47,153.42,6.55044336]
[1750137561329,27.38,153.48,153.42,6.55044336]
[1750137561505,6.55044336,153.47,153.43,6.55044336]
[1750137562533,13.06644353,153.47,153.42,6.55044336]
[1750137563015,6.55044336,153.46,153.4,29.25096417]
[1750137563215,6.55044336,153.44,153.4,26.0]
[1750137563432,33.91044336,153.45,153.41,6.55044336]
[1750137563735,27.36,153.45,153.41,6.55044336]
[1750137564629,27.36,153.45,153.41,13.06881726]
[1750137564813,12.53044336,153.49,153.44,6.55044336]
[1750137565021,27.34,153.48,153.45,6.55044336]
[1750137565229,5.98,153.49,153.47,6.55044336]
[1750137565408,5.98,153.49,153.48,6.55044336]
[1750137565609,5.98,153.49,153.47,6.55044336]
[1750137566446,5.98,153.49,153.48,6.55044336]
[1750137566934,43.66102723,153.52,153.48,9.80714514]
[1750137567713,43.66102723,153.52,153.47,9.80714514]
[1750137568114,9.80714514,153.51,153.47,9.80714514]
[1750137568319,43.64102723,153.52,153.47,9.80714514]
[1750137568619,33.83388209,153.52,153.48,9.80714514]
[1750137568822,43.64102723,153.52,153.48,9.80714514]
[1750137569020,33.83388209,153.52,153.48,9.80714514]
[1750137569236,33.46,153.54,153.5,9.80714514]
[1750137569452,6.14,153.54,153.51,9.80714514]
[1750137569652,6.14,153.54,153.52,9.80714514]
[1750137570162,6.14,153.54,153.49,26.42648471]
[1750137570333,16.31930073,153.56,153.52,9.80714514]
[1750137570653,9.80714514,153.57,153.52,16.3207544]
[1750137570815,27.32,153.57,153.53,9.80714514]
[1750137571019,37.12714514,153.57,153.53,9.80714514]
[1750137571524,6.51129104,153.58,153.54,9.80714514]
[1750137571715,43.63843618,153.58,153.53,10.23362985]
[1750137572115,43.61843618,153.58,153.53,10.23362985]
[1750137573235,9.80714514,153.57,153.52,9.80714514]
[1750137573433,9.80714514,153.55,153.51,10.09146828]
[1750137573834,9.80714514,153.55,153.51,9.80714514]
[1750137574641,27.28,153.56,153.51,9.80714514]
[1750137574826,37.08714514,153.56,153.51,9.80714514]
[1750137575352,6.51253663,153.55,153.51,9.80714514]
[1750137576949,16.31968177,153.55,153.5,9.80714514]
[1750137577123,9.80714514,153.52,153.48,0.42648471]
[1750137577322,16.32129038,153.52,153.47,11.39624514]
[1750137577955,16.32129038,153.52,153.47,1.5891]
[1750137578258,16.32129038,153.52,153.45,9.80714514]
[1750137578259,9.80714514,153.5,153.45,9.80714514]
[1750137578421,37.04714514,153.5,153.46,10.23362985]
[1750137579028,37.04714514,153.5,153.46,10.09146828]
[1750137579231,43.56193205,153.5,153.46,10.09146828]
[1750137579430,9.80714514,153.49,153.45,35.80714514]
[1750137579657,33.75478691,153.5,153.45,26.0]
[1750137579658,9.80714514,153.48,153.45,26.0]
[1750137579949,9.80714514,153.48,153.45,0.42648471]
[1750137580663,33.75478691,153.5,153.45,0.42648471]
[1750137585340,9.80714514,153.48,153.44,16.16484514]
[1750137585544,33.75478691,153.5,153.44,16.16484514]
[1750137585739,9.80714514,153.49,153.45,9.80714514]
[1750137586848,43.56193205,153.5,153.45,9.80714514]
[1750137587053,9.80714514,153.49,153.45,9.80714514]
[1750137588641,9.80714514,153.49,153.45,16.32392469]
[1750137588839,6.54038896,153.49,153.45,13.05716851]
[1750137589147,6.54038896,153.49,153.45,6.54038896]
[1750137589354,6.54038896,153.49,153.45,0.42648471]
[1750137589560,6.54038896,153.48,153.44,12.89808896]
[1750137589871,6.54038896,153.45,153.4,16.39913029]
[1750137590162,6.54038896,153.44,153.4,42.39913029]
[1750137590337,6.54038896,153.44,153.41,0.42648471]
[1750137590533,6.54038896,153.44,153.4,42.39913029]
[1750137590534,13.05806658,153.43,153.4,3.20804133]
[1750137590733,6.54038896,153.42,153.38,6.54038896]
[1750137590947,6.54038896,153.42,153.38,6.96687367]
[1750137591145,6.54038896,153.42,153.38,6.54038896]
[1750137592733,6.51830592,153.42,153.38,6.54038896]
[1750137593044,13.05869488,153.42,153.38,6.54038896]
[1750137594566,27.14,153.44,153.39,0.42648471]
[1750137594765,42.34225194,153.51,153.39,0.42648471]
[1750137594766,6.54038896,153.46,153.42,6.54038896]
[1750137594959,33.68038896,153.46,153.42,6.54038896]
[1750137595457,6.54038896,153.45,153.41,6.54038896]
[1750137596177,33.68038896,153.46,153.42,6.54038896]
[1750137596366,40.19687975,153.46,153.41,0.42648471]
[1750137596547,40.19687975,153.46,153.42,6.54038896]
[1750137596743,40.19687975,153.46,153.41,0.42648471]
[1750137597049,6.54038896,153.45,153.41,6.96687367]
[1750137597272,6.54038896,153.45,153.41,0.42648471]
[1750137597455,6.54038896,153.45,153.41,6.96687367]
[1750137597653,6.54038896,153.44,153.39,51.16883944]
[1750137597999,6.54038896,153.43,153.4,0.42648471]
[1750137598178,40.19679897,153.46,153.42,6.54038896]
[1750137598364,27.14,153.46,153.42,6.54038896]
[1750137599155,13.05640235,153.47,153.42,6.54038896]
[1750137599453,40.21640235,153.47,153.42,6.54038896]
[1750137599878,6.54038896,153.46,153.42,6.54038896]
[1750137600960,6.54038896,153.47,153.43,6.54038896]
[1750137601152,27.16,153.47,153.44,6.54038896]
[1750137601353,33.70038896,153.47,153.43,6.54038896]
[1750137602063,6.54038896,153.46,153.42,6.96687367]
[1750137602651,10.91404706,153.51,153.44,6.54038896]
[1750137602872,51.1286717,153.51,153.46,6.54038896]
[1750137603175,51.1286717,153.51,153.42,0.42648471]
[1750137603176,6.54038896,153.47,153.42,0.42648471]
[1750137603378,6.54038896,153.46,153.42,0.42648471]
[1750137604185,6.54038896,153.45,153.42,0.42648471]
[1750137604557,6.54038896,153.43,153.38,8.09036954]
[1750137604759,6.54038896,153.43,153.38,14.6307585]
[1750137604970,6.54038896,153.43,153.39,6.54038896]
[1750137605782,6.54038896,153.44,153.39,6.54038896]
[1750137606079,6.54038896,153.44,153.39,13.05958953]
[1750137606272,13.05769008,153.44,153.39,6.54038896]
[1750137606775,6.54038896,153.42,153.38,32.54038896]
[1750137607856,6.54038896,153.43,153.39,6.54038896]
[1750137608481,6.54038896,153.42,153.38,26.0]
[1750137608778,6.54038896,153.42,153.38,0.42648471]
[1750137609172,33.67769361,153.43,153.37,9.77874095]
[1750137609360,6.54038896,153.41,153.37,16.29889305]
[1750137609560,6.54038896,153.42,153.37,16.29889305]
[1750137610374,13.05849788,153.42,153.37,16.29889305]
[1750137610553,6.54038896,153.39,153.37,3.23835199]
[1750137610757,6.54038896,153.39,153.35,32.68255053]
[1750137611978,6.54038896,153.4,153.35,32.68255053]
[1750137612188,13.05945886,153.4,153.35,32.68255053]
[1750137612859,13.05945886,153.4,153.35,35.98889969]
[1750137613060,33.66038896,153.39,153.35,29.30634916]
[1750137613365,33.66038896,153.39,153.35,3.30634916]
[1750137613695,33.66038896,153.39,153.34,6.54038896]
[1750137614263,40.17975214,153.39,153.35,6.54038896]
[1750137614855,13.05844397,153.42,153.38,6.54038896]
[1750137615077,27.1,153.41,153.38,6.54038896]
[1750137616581,27.1,153.41,153.37,6.52016944]
[1750137616763,27.1,153.41,153.38,6.54038896]
[1750137616967,13.0584695,153.42,153.38,6.54038896]
[1750137617192,40.1584695,153.42,153.38,6.54038896]
[1750137617566,40.1584695,153.42,153.37,6.52016944]
[1750137617766,40.1584695,153.42,153.38,6.54038896]
[1750137618874,6.54038896,153.41,153.35,3.24570015]
[1750137619172,6.54038896,153.4,153.36,6.54038896]
[1750137619795,6.54038896,153.4,153.35,6.96687367]
[1750137620389,6.54038896,153.4,153.36,6.54038896]
[1750137620906,6.54038896,153.38,153.35,3.30450772]
[1750137621073,6.54038896,153.36,153.31,6.54038896]
[1750137621278,27.08,153.38,153.32,6.54038896]
[1750137621476,6.54038896,153.36,153.3,34.15229622]
[1750137621670,27.08,153.38,153.31,6.96687367]
[1750137621671,6.54038896,153.35,153.31,6.96687367]
[1750137622283,6.54038896,153.35,153.31,13.48950482]
[1750137622491,6.54038896,153.35,153.31,6.96687367]
[1750137622798,6.52109699,153.35,153.31,10.26049859]
[1750137622996,6.54038896,153.35,153.31,10.26049859]
[1750137623291,6.54038896,153.35,153.31,3.72010963]
[1750137623465,6.54038896,153.35,153.31,10.26049859]
[1750137625070,6.54038896,153.36,153.32,6.54038896]
[1750137625471,6.54038896,153.36,153.31,16.78314974]
[1750137625777,6.54038896,153.36,153.31,10.26049859]
[1750137625978,6.54038896,153.36,153.31,16.78318546]
[1750137626379,6.54038896,153.36,153.31,10.26049859]
[1750137626577,6.54038896,153.35,153.31,3.72010963]
[1750137626793,6.5203202,153.37,153.31,10.26049859]
[1750137626794,6.54038896,153.36,153.31,10.26049859]
[1750137627001,6.54038896,153.37,153.32,13.06256463]
[1750137627382,6.54038896,153.36,153.32,6.54038896]
[1750137627693,6.54038896,153.36,153.31,16.78315806]
[1750137628193,6.54038896,153.36,153.32,6.54038896]
[1750137629401,13.06101193,153.36,153.32,6.54038896]
[1750137630280,6.52062297,153.36,153.32,6.54038896]
[1750137630605,40.12101193,153.36,153.32,6.54038896]
[1750137632698,33.60038896,153.36,153.32,6.54038896]
[1750137632896,27.06,153.36,153.32,6.54038896]
[1750137633406,5.98,153.43,153.35,6.54038896]
[1750137633593,5.98,153.43,153.39,6.54038896]
[1750137633795,6.54038896,153.42,153.38,6.54038896]
[1750137634114,6.54038896,153.41,153.37,6.54038896]
[1750137634306,33.58038896,153.41,153.37,6.54038896]
[1750137635379,27.04,153.41,153.38,6.54038896]
[1750137636100,27.04,153.42,153.39,6.54038896]
[1750137636704,46.07806981,153.43,153.39,6.54038896]
[1750137637074,33.0,153.43,153.39,6.54038896]
[1750137638883,5.98,153.43,153.4,6.54038896]
[1750137639080,6.54038896,153.41,153.34,6.543]
[1750137639287,6.54038896,153.41,153.33,8.20528896]
[1750137639288,6.54038896,153.37,153.33,8.20528896]
[1750137639910,27.0,153.38,153.34,6.54038896]
[1750137640110,27.0,153.38,153.33,8.18671751]
[1750137640111,27.0,153.38,153.35,6.54038896]
[1750137640496,27.0,153.38,153.34,6.96687367]
[1750137640696,27.0,153.38,153.34,6.8247121]
[1750137641020,6.54038896,153.35,153.31,18.64964886]
[1750137641315,6.54038896,153.35,153.31,25.19003782]
[1750137641626,6.54038896,153.35,153.32,0.42648471]
[1750137642599,6.54038896,153.35,153.31,31.71249407]
[1750137642600,6.54038896,153.34,153.31,0.42648471]
[1750137644711,6.54038896,153.35,153.31,0.42648471]
[1750137646098,6.54038896,153.34,153.3,6.6201]
[1750137646313,6.52105902,153.35,153.3,0.42648471]
[1750137646314,6.54038896,153.33,153.3,0.42648471]
[1750137646490,33.52038896,153.34,153.3,0.42648471]
[1750137647235,6.54038896,153.33,153.28,32.54038896]
[1750137647436,6.54038896,153.32,153.28,32.54038896]
[1750137649218,6.54038896,153.32,153.28,26.0]
[1750137649831,13.06276167,153.32,153.28,26.0]
[1750137650031,6.54038896,153.31,153.28,26.0]
[1750137650349,13.06276167,153.32,153.28,26.0]
[1750137651613,13.06276167,153.32,153.28,32.54038896]
[1750137651833,6.54038896,153.31,153.27,32.54038896]
[1750137653229,6.54038896,153.31,153.26,0.28432314]
[1750137653429,6.54038896,153.29,153.25,14.21828896]
[1750137653720,6.54038896,153.28,153.24,26.0]
[1750137654293,6.54038896,153.27,153.23,6.54038896]
[1750137654499,6.54038896,153.27,153.23,0.42648471]
[1750137654899,6.54038896,153.27,153.23,6.96687367]
[1750137655106,6.54038896,153.25,153.21,8.2245]
[1750137655299,6.54038896,153.25,153.2,6.54038896]
[1750137655728,6.54038896,153.25,153.2,32.54038896]
[1750137656023,33.48038896,153.26,153.21,6.54038896]
[1750137656209,26.94,153.26,153.22,6.54038896]
[1750137656803,26.94,153.26,153.2,0.28432314]
[1750137656998,26.94,153.26,153.19,51.31963557]
[1750137656999,33.48038896,153.26,153.22,6.54038896]
[1750137657225,33.48038896,153.26,153.23,6.54038896]
[1750137657226,26.94,153.26,153.23,6.54038896]
[1750137658127,26.94,153.26,153.22,6.54038896]
[1750137659630,33.48038896,153.26,153.21,13.06737805]
[1750137660221,26.94,153.26,153.23,6.54038896]
[1750137661209,26.94,153.26,153.21,6.54038896]
[1750137661210,6.54038896,153.25,153.21,6.54038896]
[1750137661430,6.54038896,153.25,153.2,6.52734872]
[1750137661627,6.54038896,153.25,153.21,6.54038896]
[1750137661927,6.54038896,153.23,153.19,6.54038896]
[1750137662146,33.46489037,153.26,153.18,45.95973417]
[1750137662147,6.54038896,153.22,153.18,39.28938096]
[1750137662813,6.54038896,153.22,153.17,14.70425053]
[1750137662814,6.54038896,153.21,153.17,0.42648471]
[1750137663009,6.54038896,153.18,153.13,7.5456]
[1750137663217,6.54038896,153.18,153.13,20.61634957]
[1750137663417,6.54038896,153.18,153.14,6.54038896]
[1750137663606,5.88,153.21,153.16,6.54038896]
[1750137663806,5.88,153.21,153.19,6.54038896]
[1750137664105,5.88,153.21,153.17,26.14216157]
[1750137664106,5.88,153.21,153.2,6.54038896]
[1750137664712,11.26174093,153.25,153.2,6.8247121]
[1750137664922,27.0,153.24,153.22,6.54038896]
[1750137665337,11.26174093,153.25,153.2,0.28432314]
[1750137665338,11.26174093,153.25,153.23,6.54038896]
[1750137665561,12.40400867,153.28,153.24,6.54038896]
[1750137665711,5.88,153.28,153.27,6.54038896]
[1750137665907,5.88,153.28,153.23,0.14216157]
[1750137666112,5.88,153.28,153.26,6.54038896]
[1750137666523,5.88,153.28,153.27,6.54038896]
[1750137666835,5.88,153.28,153.27,6.96687367]
[1750137667031,39.37349058,153.31,153.27,6.96687367]
[1750137667204,39.37349058,153.31,153.29,6.54038896]
[1750137667923,12.33349058,153.31,153.3,6.54038896]
[1750137669327,5.88,153.33,153.3,13.49003087]
[1750137669645,5.88,153.33,153.32,6.54038896]
[1750137670839,27.04,153.36,153.32,6.54038896]
[1750137671018,6.54038896,153.35,153.3,6.96687367]
[1750137671530,6.54038896,153.35,153.31,6.54038896]
[1750137672447,40.10101392,153.36,153.32,6.54038896]
[1750137673547,6.54038896,153.34,153.3,6.54038896]
[1750137673725,33.56062496,153.36,153.31,6.54038896]
[1750137674044,27.02,153.35,153.33,6.54038896]
[1750137675245,27.02,153.35,153.32,6.54038896]
[1750137678142,26.98,153.35,153.32,6.54038896]
[1750137679257,33.52038896,153.35,153.31,6.54038896]
[1750137679636,26.98,153.35,153.31,6.54038896]
[1750137679852,26.98,153.35,153.32,6.54038896]
[1750137680950,18.94054423,153.38,153.33,6.54038896]
[1750137681280,18.94054423,153.38,153.32,6.54038896]
[1750137681281,33.50038896,153.37,153.32,6.54038896]
[1750137681443,33.50038896,153.37,153.32,13.06268286]
[1750137681833,6.54038896,153.36,153.32,13.06268286]
[1750137682574,6.54038896,153.36,153.32,6.54038896]
[1750137682745,13.06102152,153.36,153.31,6.54038896]
[1750137682942,6.54038896,153.35,153.31,6.54038896]
[1750137685870,6.54038896,153.33,153.29,6.96687367]
[1750137686047,26.94,153.33,153.29,6.96687367]
[1750137686244,26.94,153.33,153.3,6.54038896]
[1750137687070,26.94,153.33,153.31,6.54038896]
[1750137687365,26.94,153.33,153.32,6.54038896]
[1750137687558,26.94,153.34,153.32,6.54038896]
[1750137688556,33.48038896,153.34,153.29,0.42648471]
[1750137688758,33.48038896,153.34,153.3,6.54038896]
[1750137689669,6.54038896,153.33,153.29,6.54038896]
[1750137690564,6.54038896,153.32,153.28,6.54038896]
[1750137690752,33.46150134,153.34,153.29,6.54038896]
[1750137690957,6.54038896,153.33,153.29,6.54038896]
[1750137691366,40.0018903,153.34,153.29,6.54038896]
[1750137691550,40.0018903,153.34,153.27,13.06140311]
[1750137691750,6.54038896,153.33,153.29,6.54038896]
[1750137693354,13.06241898,153.33,153.29,6.54038896]
[1750137693969,6.54038896,153.3,153.25,6.54038896]
[1750137694167,33.48038896,153.29,153.25,6.54038896]
[1750137694355,33.48038896,153.29,153.24,8.12058896]
[1750137694760,33.48038896,153.29,153.24,14.64627478]
[1750137694965,33.48038896,153.29,153.25,6.54038896]
[1750137695279,26.94,153.29,153.26,6.54038896]
[1750137695598,26.94,153.29,153.24,8.10588582]
[1750137695749,26.94,153.29,153.25,6.54038896]
[1750137696948,33.48038896,153.29,153.25,6.54038896]
[1750137699877,40.00404897,153.29,153.25,6.54038896]
[1750137703276,26.94,153.29,153.26,6.54038896]
[1750137703586,26.94,153.29,153.25,6.96687367]
[1750137705293,26.94,153.29,153.25,13.49215144]
[1750137705462,6.54038896,153.27,153.23,6.54038896]
[1750137705784,6.54038896,153.27,153.23,0.42648471]
[1750137705785,26.9,153.26,153.23,0.42648471]
[1750137706383,6.54038896,153.25,153.22,26.0]
[1750137706951,33.44038896,153.26,153.22,32.54038896]
[1750137708366,6.54038896,153.24,153.2,6.54038896]
[1750137708672,6.54038896,153.24,153.19,6.2046]
[1750137708673,33.44038896,153.23,153.19,6.54038896]
[1750137709483,39.96691534,153.23,153.19,6.54038896]
[1750137709656,39.96691534,153.23,153.18,6.54038896]
[1750137709852,6.54038896,153.21,153.17,6.54038896]
[1750137710072,26.9,153.2,153.17,6.54038896]
[1750137710255,26.9,153.19,153.17,6.54038896]
[1750137710779,26.9,153.19,153.16,6.54038896]
[1750137710987,33.44038896,153.19,153.15,6.54038896]
[1750137711166,33.44038896,153.19,153.14,6.54038896]
[1750137711483,6.52826739,153.18,153.14,6.54038896]
[1750137711781,13.06865635,153.18,153.14,6.54038896]
[1750137712153,6.54038896,153.16,153.11,13.17853735]
[1750137712357,33.44038896,153.16,153.12,6.54038896]
[1750137712586,26.9,153.16,153.12,6.54038896]
[1750137712787,26.9,153.16,153.13,6.54038896]
[1750137713163,26.9,153.16,153.11,13.17853735]
[1750137713367,33.4292711,153.16,153.12,6.54038896]
[1750137713677,26.9,153.16,153.12,6.54038896]
[1750137714179,26.9,153.16,153.13,6.54038896]
[1750137715094,5.88,153.17,153.15,6.54038896]
[1750137715269,5.88,153.17,153.16,6.54038896]
[1750137716193,5.86,153.22,153.16,13.35383197]
[1750137716484,26.9,153.21,153.19,6.54038896]
[1750137716861,26.92,153.21,153.19,6.54038896]
[1750137717489,32.78,153.22,153.2,6.54038896]
[1750137717861,32.78,153.22,153.21,6.54038896]
[1750137717862,5.86,153.22,153.21,6.54038896]
[1750137718892,5.86,153.22,153.2,0.42648471]
[1750137719074,5.86,153.22,153.21,6.54038896]
[1750137720085,5.86,153.22,153.19,6.52751404]
[1750137720264,5.86,153.22,153.19,6.54038896]
[1750137720459,5.86,153.22,153.17,0.42648471]
[1750137720677,18.92700181,153.22,153.16,6.67128144]
[1750137720989,6.54038896,153.2,153.15,6.54038896]
[1750137721689,33.46038896,153.21,153.17,6.54038896]
[1750137721998,39.9874098,153.21,153.17,6.54038896]
[1750137724809,6.54038896,153.2,153.16,6.54038896]
[1750137725890,39.9874098,153.21,153.17,6.54038896]
[1750137730467,39.98743774,153.21,153.17,6.54038896]
[1750137734704,13.06743774,153.21,153.17,6.54038896]
[1750137734909,26.92,153.21,153.19,6.54038896]
[1750137735881,26.92,153.21,153.2,6.54038896]
[1750137736079,5.86,153.22,153.2,6.54038896]
[1750137736280,5.86,153.22,153.21,6.54038896]
[1750137736581,5.86,153.22,153.19,6.5277037]
[1750137736781,5.86,153.22,153.18,32.54038896]
[1750137736989,5.86,153.22,153.19,6.54038896]
[1750137738110,5.86,153.22,153.18,32.52819692]
[1750137738111,5.86,153.22,153.2,6.54038896]
[1750137741417,5.86,153.22,153.21,6.54038896]
[1750137742710,26.9,153.25,153.21,39.06716775]
[1750137743016,26.9,153.26,153.24,6.54038896]
[1750137743704,5.86,153.27,153.24,6.54038896]
[1750137743903,26.9,153.26,153.24,6.54038896]
[1750137747121,5.86,153.27,153.24,6.54038896]
[1750137747298,26.9,153.26,153.24,6.54038896]
[1750137748508,5.86,153.27,153.24,6.54038896]
[1750137748709,26.9,153.26,153.24,6.54038896]
[1750137750297,33.44038896,153.26,153.22,6.54038896]
[1750137750796,26.9,153.26,153.23,6.54038896]
[1750137751127,26.9,153.26,153.24,6.54038896]
[1750137751931,26.9,153.26,153.23,6.54038896]
[1750137752306,39.96526752,153.26,153.21,32.54038896]
[1750137753216,39.96526752,153.26,153.22,6.54038896]
[1750137754635,6.54038896,153.24,153.19,0.42648471]
[1750137754829,26.9,153.23,153.19,13.49465783]
[1750137755333,26.9,153.23,153.2,6.54038896]
[1750137756118,39.96661673,153.23,153.19,6.54038896]
[1750137756633,6.54038896,153.21,153.17,6.54038896]
[1750137756935,26.9,153.2,153.17,6.54038896]
[1750137757140,26.9,153.2,153.18,6.54038896]
[1750137757930,26.9,153.2,153.16,14.3484143]
[1750137757931,26.9,153.2,153.16,7.8194]
[1750137758128,39.96789858,153.2,153.16,7.8194]
[1750137758437,39.96789858,153.2,153.15,26.28432314]
[1750137758608,39.96789858,153.2,153.16,6.54038896]
[1750137759639,26.9,153.2,153.17,6.54038896]
[1750137761437,26.9,153.2,153.18,6.54038896]
[1750137762543,5.86,153.27,153.19,6.54038896]
[1750137762722,26.9,153.26,153.2,0.42648471]
[1750137762919,12.40038896,153.27,153.22,6.54038896]
[1750137763229,26.9,153.25,153.22,6.54038896]
[1750137763817,33.42541374,153.25,153.21,6.54038896]
[1750137764042,13.0658027,153.25,153.21,6.54038896]
[1750137764433,26.9,153.24,153.21,6.54038896]
[1750137766522,6.52541374,153.25,153.21,6.54038896]
[1750137766724,39.96630327,153.24,153.19,6.54038896]
[1750137767329,33.42591431,153.24,153.19,6.54038896]
[1750137767533,39.96630327,153.24,153.2,6.54038896]
[1750137767738,39.96630327,153.24,153.18,38.95663]
[1750137767936,39.96630327,153.24,153.2,6.54038896]
[1750137769839,45.82630327,153.24,153.2,6.54038896]
[1750137770749,45.82630327,153.24,153.18,38.95663]
[1750137770950,45.82630327,153.24,153.2,6.54038896]
[1750137774727,6.54038896,153.22,153.15,7.6529]
[1750137774955,26.88,153.21,153.18,6.54038896]
[1750137775743,26.88,153.21,153.16,6.52900631]
[1750137776054,26.88,153.21,153.18,6.54038896]
[1750137777043,33.40709792,153.21,153.16,6.52900631]
[1750137777247,33.40709792,153.21,153.17,6.54038896]
[1750137777556,33.40709792,153.21,153.18,6.54038896]
[1750137777926,33.40709792,153.21,153.17,6.54038896]
[1750137778543,39.94748688,153.21,153.17,6.54038896]
[1750137779759,33.40709792,153.21,153.17,6.54038896]
[1750137780134,39.94748688,153.21,153.17,6.54038896]
[1750137780357,39.94748688,153.21,153.16,6.54038896]
[1750137780566,6.54038896,153.2,153.1,8.0626367]
[1750137780732,6.54038896,153.17,153.12,25.18019524]
[1750137780929,26.88,153.16,153.13,6.54038896]
[1750137781846,33.42038896,153.16,153.12,6.54038896]
[1750137782053,33.42038896,153.16,153.11,6.54038896]
[1750137782054,6.54038896,153.15,153.11,6.54038896]
[1750137782242,6.54038896,153.15,153.1,6.54038896]
[1750137782563,5.84,153.17,153.14,6.54038896]
[1750137782766,26.88,153.16,153.15,6.54038896]
[1750137783352,26.88,153.16,153.11,26.0]
[1750137783550,26.88,153.16,153.13,6.54038896]
[1750137784155,26.88,153.16,153.14,6.54038896]
[1750137784856,26.88,153.16,153.11,32.53101962]
[1750137785051,26.88,153.16,153.13,6.54038896]
[1750137785258,26.88,153.16,153.14,6.54038896]
[1750137785457,26.88,153.16,153.15,6.54038896]
[1750137785665,5.84,153.17,153.15,6.54038896]
[1750137785840,5.84,153.17,153.13,0.42648471]
[1750137786042,5.84,153.17,153.14,6.54038896]
[1750137787865,5.84,153.17,153.12,6.53079537]
[1750137787866,18.90929098,153.17,153.13,6.54038896]
[1750137788064,12.36890202,153.17,153.13,6.54038896]
[1750137789249,12.36890202,153.17,153.11,32.53121803]
[1750137789568,12.36890202,153.17,153.13,6.54038896]
[1750137789884,18.90929098,153.17,153.11,32.53117827]
[1750137790084,18.90929098,153.17,153.13,6.54038896]
[1750137791764,18.90929098,153.17,153.11,26.0]
[1750137791950,18.90929098,153.17,153.13,6.54038896]
[1750137792153,6.54038896,153.16,153.12,6.54038896]
[1750137792454,26.9,153.15,153.12,6.54038896]
[1750137793581,33.42960794,153.15,153.12,6.54038896]
[1750137794446,26.9,153.15,153.13,6.54038896]
[1750137795548,33.4292152,153.16,153.13,6.54038896]
[1750137797170,33.4292152,153.16,153.12,6.54038896]
[1750137799080,26.9,153.16,153.13,6.54038896]
[1750137799972,5.84,153.17,153.14,6.54038896]
[1750137800352,32.74,153.17,153.14,6.54038896]
[1750137801477,32.74,153.17,153.15,6.54038896]
[1750137801676,32.74,153.17,153.12,0.42648471]
[1750137801976,32.74,153.17,153.15,6.54038896]
[1750137802371,32.74,153.17,153.14,6.54038896]
[1750137803048,5.84,153.17,153.14,6.54038896]
[1750137803367,5.86,153.22,153.16,6.54038896]
[1750137803582,5.86,153.22,153.2,6.54038896]
[1750137803752,26.9,153.21,153.2,6.54038896]
[1750137804370,5.86,153.22,153.18,6.52789867]
[1750137804371,32.76,153.22,153.18,6.52789867]
[1750137804582,32.76,153.22,153.19,6.54038896]
[1750137806778,26.88,153.21,153.19,6.54038896]
[1750137808004,26.88,153.21,153.17,6.95506466]
[1750137808005,33.42038896,153.21,153.17,6.54038896]
[1750137808168,33.42038896,153.21,153.13,24.44245908]
[1750137808169,6.54038896,153.2,153.14,6.67213414]
[1750137808486,26.88,153.19,153.16,6.54038896]
[1750137809089,33.42038896,153.19,153.15,6.54038896]
[1750137810381,39.94823519,153.19,153.15,6.54038896]
[1750137810701,6.54038896,153.18,153.12,0.42648471]
[1750137810870,26.88,153.17,153.13,6.54038896]
[1750137812175,26.88,153.17,153.14,6.54038896]
[1750137813102,26.88,153.17,153.13,6.5303087]
[1750137813273,26.88,153.17,153.14,6.54038896]
[1750137813678,26.88,153.17,153.13,6.5303087]
[1750137813883,26.88,153.17,153.12,6.54038896]
[1750137814082,6.54038896,153.16,153.12,6.54038896]
[1750137814897,39.9491113,153.17,153.13,6.54038896]
[1750137815725,39.9491113,153.17,153.12,6.54038896]
[1750137816574,39.9491113,153.17,153.13,6.54038896]
[1750137817201,13.06957868,153.16,153.12,6.54038896]
[1750137817899,6.52918972,153.16,153.13,6.54038896]
[1750137818891,13.06957868,153.16,153.12,6.54038896]
[1750137819404,13.06957868,153.16,153.1,6.53158997]
[1750137819405,6.54038896,153.14,153.09,6.4235]
[1750137819600,26.88,153.13,153.1,6.54038896]
[1750137820312,26.88,153.13,153.09,6.4235]
[1750137820313,33.42038896,153.13,153.09,6.54038896]